bitfinex/quotes_ETHUSD_20240709
["timestamp","ask_amount","ask_price","bid_price","bid_amount"]
[1720518540410,2.387,3103.3,3102.8,3.2228]
[1720518540621,2.387,3103.3,3102.9,3.22278]
[1720518541881,2.34890953,3103.8,3103.1,3.22251]
[1720518541882,3.76376493,3103.8,3103.1,3.22251]
[1720518542104,3.76376493,3103.8,3102.9,0.06445335]
[1720518542105,2.4164,3103.8,3103.4,3.22226]
[1720518542301,3.76376493,3104.3,3103.6,3.22204]
[1720518542500,2.87325949,3104.3,3103.6,6.44401]
[1720518542777,2.87325949,3104.3,3103.7,3.22194]
[1720518544372,2.4164,3104.3,3103.7,3.22194]
[1720518544577,7.36,3104.6,3104.0,3.22158]
[1720518544813,2.4981,3104.7,3104.0,3.22158]
[1720518545406,2.4981,3104.7,3103.8,3.22177]
[1720518545584,0.38454649,3104.6,3103.9,3.22175]
[1720518546616,0.38454649,3104.6,3103.9,3.22169]
[1720518546929,0.38454649,3104.6,3103.9,6.44337]
[1720518547117,0.38454649,3104.6,3103.9,3.22168]
[1720518547418,0.38454649,3104.6,3104.0,3.22158]
[1720518547809,2.4981,3104.7,3103.3,3.22233]
[1720518547984,2.4981,3104.7,3103.6,3.22202]
[1720518548182,2.4981,3104.7,3104.1,3.22148]
[1720518548482,2.4981,3104.7,3104.3,3.22128]
[1720518548916,2.4981,3104.7,3104.3,6.44255]
[1720518549087,2.4981,3104.7,3103.8,3.28624886]
[1720518549088,3.62906493,3105.1,3103.9,2.2788]
[1720518549294,2.2817,3105.1,3104.4,3.22123]
[1720518549505,2.2817,3105.1,3104.0,3.28604012]
[1720518549506,2.2817,3105.1,3104.6,6.44188]
[1720518549695,2.2817,3105.5,3104.6,3.22092]
[1720518549906,2.2817,3105.5,3104.8,3.22081]
[1720518551036,0.55,3105.4,3104.8,3.22081]
[1720518551607,0.55,3105.4,3104.6,3.22092]
[1720518552241,0.55,3105.4,3104.4,3.22114]
[1720518552446,0.28317,3105.3,3104.5,3.22107]
[1720518553153,0.28317,3105.3,3104.6,6.44196]
[1720518553306,0.28317,3105.3,3104.6,6.44192]
[1720518553510,0.28317,3105.3,3104.7,3.2209]
[1720518555413,0.28317,3105.3,3104.3,3.22124]
[1720518555614,0.06462145,3105.2,3104.5,3.22112]
[1720518555836,2.2966,3105.1,3104.1,3.22146]
[1720518556146,2.2966,3105.1,3103.5,2.3923]
[1720518556147,2.2966,3104.8,3103.9,3.22169]
[1720518556646,0.55,3104.7,3103.9,3.22169]
[1720518556849,0.61462145,3104.7,3103.9,3.22169]
[1720518557158,1.34539719,3105.1,3104.6,3.22102]
[1720518557312,2.2518,3105.2,3104.6,3.22102]
[1720518557661,2.70716979,3105.2,3104.4,3.22114]
[1720518557813,2.77179124,3105.2,3104.2,3.22134]
[1720518558011,3.22072,3104.9,3104.0,3.22159]
[1720518558276,2.4323,3104.8,3104.0,3.22159]
[1720518558567,0.565302,3104.7,3104.1,3.22151]
[1720518558860,2.4323,3104.8,3104.1,3.22151]
[1720518561370,2.4323,3104.8,3103.5,5.3923]
[1720518561533,5.65312,3104.8,3104.0,3.22159]
[1720518561970,2.4323,3104.8,3104.0,3.22159]
[1720518562129,0.24323,3104.7,3104.0,3.22159]
[1720518565248,0.24323,3104.7,3104.0,6.44316]
[1720518565758,0.24323,3104.7,3104.0,3.22157]
[1720518569576,2.4323,3104.8,3104.0,3.22155]
[1720518569738,2.4323,3104.8,3103.8,3.22176]
[1720518569739,5.65312,3104.8,3103.8,3.22176]
[1720518569941,5.65312,3104.8,3103.9,3.22167]
[1720518570166,0.565312,3104.7,3103.9,3.22167]
[1720518570552,2.4323,3104.8,3103.9,3.22167]
[1720518571079,0.55,3104.7,3103.8,3.22182]
[1720518571245,0.61462145,3104.7,3103.7,3.22185]
[1720518571445,0.52593,3104.6,3103.8,6.22179]
[1720518571663,0.52593,3104.6,3103.8,3.22179]
[1720518572086,0.52593,3104.6,3103.9,3.22171]
[1720518577669,0.52593,3104.6,3103.7,3.22187]
[1720518577844,0.52593,3104.6,3103.8,6.22184]
[1720518578472,0.52593,3104.6,3103.3,3.22237]
[1720518578473,2.3627,3104.4,3103.3,3.22237]
[1720518578782,2.3627,3104.2,3103.3,3.22237]
[1720518578945,2.42732145,3104.2,3103.2,3.22247]
[1720518579147,3.70981522,3104.2,3103.3,3.0]
[1720518579453,2.29786996,3104.1,3103.1,3.22253]
[1720518580183,3.61141522,3104.0,3102.8,3.22283]
[1720518580494,1.34711522,3103.9,3102.8,3.22283]
[1720518580643,0.36114152,3103.8,3102.9,3.22278]
[1720518581446,0.36114152,3103.8,3102.7,3.22292]
[1720518581447,2.4753,3103.7,3102.7,3.22292]
[1720518581893,3.82241522,3103.7,3102.7,3.22292]
[1720518582275,3.82241522,3103.7,3102.8,3.22286]
[1720518582587,2.4753,3103.7,3102.8,3.28731038]
[1720518582963,2.4753,3103.7,3102.9,3.22278]
[1720518583159,2.4753,3103.7,3102.9,3.22272]
[1720518583361,2.4753,3103.7,3103.0,3.28711599]
[1720518583886,2.4753,3103.7,3103.0,3.22267]
[1720518584884,2.4753,3103.7,3103.1,3.22257]
[1720518585390,1.34711522,3103.8,3103.2,0.06444722]
[1720518585573,2.4068,3104.1,3103.4,3.22226]
[1720518586164,1.35048111,3104.3,3103.6,3.22198]
[1720518586491,2.4572,3104.4,3103.7,3.28639419]
[1720518586704,1.35048111,3104.6,3103.9,3.22172]
[1720518586851,1.35048111,3104.7,3104.0,3.22162]
[1720518588923,1.35048111,3104.6,3104.0,3.22162]
[1720518589582,1.35048111,3104.7,3104.0,3.22162]
[1720518589783,2.3788,3104.8,3104.2,3.22142]
[1720518589784,1.35050658,3104.8,3104.2,3.22142]
[1720518589996,1.35050658,3104.9,3104.3,3.22132]
[1720518591091,1.35050658,3104.8,3104.3,3.22132]
[1720518591307,1.35050658,3104.8,3104.2,3.22142]
[1720518591486,1.35050658,3104.7,3104.0,3.22162]
[1720518592622,1.35050658,3104.7,3104.1,3.22154]
[1720518592788,1.35050658,3104.7,3104.0,3.22158]
[1720518593409,1.35050658,3104.7,3103.6,3.222]
[1720518593629,1.35050658,3104.7,3103.5,5.3689]
[1720518593630,2.3388,3104.6,3103.8,3.22184]
[1720518593841,3.68930658,3104.6,3103.8,3.22184]
[1720518594005,3.68930658,3104.6,3103.8,6.4436]
[1720518594608,3.68930658,3104.6,3103.8,6.44355]
[1720518595126,3.68930658,3104.6,3103.8,3.22184]
[1720518595127,2.87655416,3104.6,3103.8,3.22184]
[1720518595446,4.22706074,3104.6,3103.8,3.22179]
[1720518595721,1.35050658,3104.5,3103.7,3.0]
[1720518595952,1.7796748,3104.4,3103.5,6.22216]
[1720518596305,3.60660658,3104.3,3103.5,3.0]
[1720518596547,1.35050658,3104.2,3103.5,3.0]
[1720518597053,3.60660658,3104.3,3103.5,3.0]
[1720518597218,0.43738115,3104.2,3103.5,3.0]
[1720518597607,0.43738115,3104.2,3103.4,3.22221]
[1720518597608,1.78788773,3104.2,3103.4,3.22221]
[1720518597805,1.78788773,3104.2,3103.5,3.0]
[1720518598046,0.43738115,3104.2,3103.5,3.0]
[1720518598246,1.78788773,3104.2,3103.5,3.0]
[1720518599610,1.78788773,3104.2,3103.5,6.22215]
[1720518599809,2.2561,3104.3,3103.5,6.22215]
[1720518600110,2.2561,3104.3,3103.7,3.22195]
[1720518600746,3.60660658,3104.3,3103.7,3.22195]
[1720518600962,3.60660658,3104.3,3103.5,6.22215]
[1720518601345,1.35050658,3104.2,3103.5,6.22208]
[1720518601652,1.35174166,3104.2,3103.7,3.22192]
[1720518601964,4.13744009,3104.3,3103.7,3.22192]
[1720518602618,4.13744009,3104.3,3103.5,6.22208]
[1720518602812,4.13744009,3104.3,3103.6,3.22197]
[1720518603524,4.13744009,3104.3,3103.7,3.22196]
[1720518603747,0.58271172,3104.2,3103.5,6.22208]
[1720518603950,1.93445338,3104.2,3103.5,6.22214]
[1720518604860,1.93445338,3104.2,3103.6,3.22203]
[1720518605362,1.93467491,3104.2,3103.6,3.22203]
[1720518606221,1.93467491,3104.2,3103.7,3.0]
[1720518607952,1.35196319,3104.1,3103.6,3.0]
[1720518608154,1.93467491,3104.2,3103.6,3.0]
[1720518608632,1.93474809,3104.2,3103.6,3.0]
[1720518609428,1.93474809,3104.2,3103.7,3.22194]
[1720518609661,3.60813637,3104.3,3103.7,3.22194]
[1720518611276,1.35203637,3104.3,3103.9,3.22168]
[1720518611434,1.35203637,3104.3,3103.7,5.4828]
[1720518611435,1.35203637,3104.6,3104.2,3.22143]
[1720518611636,1.35203637,3104.7,3104.2,3.22143]
[1720518612032,1.35203637,3104.7,3103.7,5.48283]
[1720518612033,8.71203637,3105.0,3104.5,3.22111]
[1720518612239,8.71203637,3105.0,3104.4,3.22121]
[1720518612487,8.71203637,3105.0,3104.4,6.44236]
[1720518612787,8.71203637,3105.0,3104.4,6.44232]
[1720518612934,8.71203637,3105.0,3104.4,3.22115]
[1720518613137,0.06462145,3104.9,3104.3,3.0]
[1720518613334,1.41665782,3104.9,3104.3,3.0]
[1720518614188,1.41665782,3104.9,3104.0,3.22157]
[1720518614487,1.35203637,3104.7,3104.1,6.22153]
[1720518614697,1.35203637,3104.7,3104.1,3.0]
[1720518614899,1.41665782,3104.7,3103.9,3.0]
[1720518615057,2.2696,3104.5,3103.6,3.22201]
[1720518615263,1.71420001,3104.4,3103.7,3.0]
[1720518615458,1.71420001,3104.4,3103.7,6.22195]
[1720518616312,1.35203637,3104.4,3103.8,0.06443705]
[1720518616453,1.35203637,3104.7,3104.0,3.22156]
[1720518616871,1.35203637,3104.7,3104.1,3.22154]
[1720518617088,1.95606727,3104.7,3104.1,3.22154]
[1720518617799,1.95606727,3104.7,3103.7,2.4373]
[1720518617800,1.35203637,3104.6,3104.0,3.22162]
[1720518618000,1.35203637,3104.5,3103.8,3.22175]
[1720518618313,1.35203637,3104.5,3103.3,3.22231]
[1720518618314,2.3456,3104.4,3103.3,3.22231]
[1720518618460,2.3456,3104.2,3102.9,3.22273]
[1720518618659,3.6973581,3103.8,3103.0,3.2226]
[1720518619009,1.3517581,3103.7,3103.1,3.22257]
[1720518620666,3.6973581,3103.8,3103.1,3.22257]
[1720518621066,3.6973581,3103.8,3103.1,6.4451]
[1720518621264,4.46376025,3103.8,3103.1,6.4451]
[1720518621570,1.3517581,3103.8,3103.2,0.06444981]
[1720518621916,2.415,3104.1,3103.7,3.22196]
[1720518622059,1.3517581,3104.2,3103.7,3.22196]
[1720518622265,1.3517581,3104.4,3103.3,3.22233]
[1720518622573,1.3517581,3104.5,3103.9,3.22169]
[1720518623765,1.65585859,3104.5,3103.9,3.22169]
[1720518623979,1.65585859,3104.5,3103.6,3.222]
[1720518624263,2.348,3104.2,3103.4,6.44441]
[1720518624493,1.3517581,3104.1,3103.4,3.2222]
[1720518624713,1.3517581,3104.1,3103.5,3.22215]
[1720518625506,1.3517581,3104.1,3103.6,3.22206]
[1720518626090,1.3517581,3104.3,3103.8,3.22177]
[1720518626294,1.68919799,3104.4,3103.8,3.22177]
[1720518626295,1.3517581,3104.4,3103.8,3.22177]
[1720518626540,1.55108795,3104.3,3103.8,6.44356]
[1720518626693,1.3517581,3104.4,3103.8,6.44354]
[1720518627002,1.3517581,3104.4,3103.9,3.22174]
[1720518627215,1.3517581,3104.4,3103.4,2.3095]
[1720518627410,1.3517581,3104.4,3103.8,6.44352]
[1720518628203,1.88765371,3104.4,3103.5,3.22211]
[1720518628432,1.88765371,3104.4,3103.6,3.0]
[1720518628433,1.3517581,3104.2,3103.6,3.0]
[1720518628732,1.3517581,3104.1,3103.6,3.0]
[1720518628904,1.35207668,3104.1,3103.6,3.0]
[1720518629110,2.4211,3104.0,3103.6,3.0]
[1720518629422,3.77317668,3104.0,3103.3,3.22229]
[1720518629617,1.35207668,3103.9,3103.1,3.22255]
[1720518629937,1.35207668,3103.8,3103.3,3.22237]
[1720518631794,1.35207668,3103.9,3103.3,3.22237]
[1720518632199,1.35207668,3103.8,3103.3,3.22237]
[1720518632538,1.35207668,3103.8,3103.3,6.44465]
[1720518632754,3.77317668,3104.0,3103.5,3.22209]
[1720518632912,2.4211,3104.0,3103.5,3.22209]
[1720518633098,3.77317668,3104.0,3103.5,6.44419]
[1720518633431,2.4211,3104.0,3103.5,6.44419]
[1720518634101,2.4211,3104.0,3103.6,3.22205]
[1720518634504,3.77317668,3104.0,3103.5,3.22209]
[1720518635105,3.77317668,3104.0,3103.5,6.44419]
[1720518635305,4.31954998,3104.0,3103.0,3.0]
[1720518635508,1.35207668,3103.9,3103.3,3.22231]
[1720518636540,1.35207668,3103.8,3103.3,3.22231]
[1720518636805,1.35207668,3103.8,3103.2,3.22247]
[1720518637842,2.01770876,3103.8,3102.9,3.22268]
[1720518638002,1.35207668,3103.6,3102.9,3.22268]
[1720518638201,2.2762,3103.5,3102.9,3.22268]
[1720518638404,3.62900542,3103.5,3102.9,6.4454]
[1720518638615,3.62900542,3103.5,3102.8,3.22289]
[1720518638815,3.99190596,3103.5,3102.7,6.44587]
[1720518639058,3.99190596,3103.5,3102.8,3.22288]
[1720518639212,3.99190596,3103.5,3102.8,6.22288]
[1720518639415,3.99190596,3103.5,3102.6,3.22309]
[1720518639616,1.35280542,3103.3,3102.6,3.22309]
[1720518639856,1.35280542,3103.1,3102.6,3.22309]
[1720518640221,1.65717011,3103.2,3102.6,3.22309]
[1720518640624,1.35280542,3102.9,3102.2,3.22344]
[1720518640855,1.35280542,3102.9,3101.8,7.43]
[1720518640856,0.06462145,3102.8,3101.9,3.22375]
[1720518641022,1.41742687,3102.8,3101.9,3.22375]
[1720518641363,1.66363225,3102.8,3102.0,3.22364]
[1720518641559,2.43532145,3103.1,3102.1,3.22361]
[1720518641864,1.35171707,3102.9,3102.1,3.22361]
[1720518642365,1.35171707,3102.9,3101.9,3.22374]
[1720518642522,1.89938556,3102.9,3102.0,3.0]
[1720518642920,1.35171707,3102.8,3102.0,3.0]
[1720518643157,1.96400701,3102.9,3102.0,3.0]
[1720518643358,1.41633852,3102.9,3102.0,3.0]
[1720518644028,1.41633852,3102.9,3101.8,3.22387]
[1720518644364,2.3142,3102.8,3101.9,3.0]
[1720518644522,0.4376753,3102.7,3101.9,3.0]
[1720518645374,0.4376753,3102.7,3101.4,2.3866]
[1720518645523,0.4376753,3102.7,3101.0,3.22467]
[1720518645524,3.60471707,3102.4,3101.0,3.22467]
[1720518645723,1.94555737,3102.3,3101.1,3.22459]
[1720518646060,1.35171707,3101.9,3100.5,3.22527]
[1720518646360,2.34162145,3101.8,3100.5,3.22522]
[1720518646532,3.17233385,3101.7,3100.3,5.48052]
[1720518646855,3.17233385,3101.7,3100.4,3.22537]
[1720518647858,3.17233385,3101.7,3100.4,3.28986786]
[1720518648221,3.17233385,3101.7,3100.4,3.22537]
[1720518649463,3.17233385,3101.7,3100.5,3.22527]
[1720518649636,0.54493339,3101.6,3100.5,3.22527]
[1720518650262,0.55,3101.5,3100.0,3.22579]
[1720518650467,0.55,3101.5,3100.2,3.22558]
[1720518650674,4.6442,3101.4,3100.0,3.22579]
[1720518650853,0.51942,3101.3,3100.0,3.22579]
[1720518651058,0.55,3101.2,3100.0,3.22579]
[1720518651570,0.55,3101.2,3100.1,3.22569]
[1720518651889,0.55,3101.2,3100.2,3.22559]
[1720518652430,0.55,3101.2,3100.0,3.29029565]
[1720518652431,2.3672,3101.4,3100.5,3.22526]
[1720518653034,2.60392,3101.4,3100.5,3.22526]
[1720518653380,2.58252556,3101.4,3100.5,3.22526]
[1720518654536,2.58252556,3101.4,3100.6,3.22517]
[1720518655645,2.34580556,3101.4,3100.7,3.22501]
[1720518655839,2.34580556,3101.4,3100.9,3.22484]
[1720518656044,2.277,3101.8,3100.9,3.22484]
[1720518656555,2.3259,3101.7,3100.9,3.22484]
[1720518656738,2.32436979,3101.7,3100.9,3.22484]
[1720518656945,2.78450677,3101.7,3100.9,3.22484]
[1720518658283,2.32436979,3101.7,3100.9,3.22484]
[1720518658501,2.32436979,3101.7,3101.1,3.22456]
[1720518658657,2.277,3102.2,3101.3,3.22443]
[1720518659988,2.2686,3102.1,3101.3,3.22438]
[1720518661284,2.2686,3102.1,3101.2,3.0]
[1720518661664,2.72316,3102.1,3100.7,3.22501]
[1720518661865,2.277,3101.8,3100.7,3.22501]
[1720518662058,0.55,3101.7,3100.8,3.0]
[1720518662463,2.3241,3101.6,3100.8,3.0]
[1720518662944,2.3241,3101.6,3101.2,3.22453]
[1720518663180,2.3241,3102.1,3101.5,3.22417]
[1720518663347,2.3241,3102.1,3101.7,3.22396]
[1720518663774,7.36,3102.5,3101.7,6.4479]
[1720518664062,2.3741,3102.6,3102.0,3.22371]
[1720518664267,2.3741,3102.6,3101.9,3.22373]
[1720518664268,2.3741,3102.6,3102.1,3.22359]
[1720518664461,2.3741,3102.6,3102.1,6.44713]
[1720518664663,2.3741,3102.6,3102.2,3.2235]
[1720518664864,2.4296,3102.9,3102.2,3.2235]
[1720518665564,2.4296,3102.9,3102.1,3.22354]
[1720518665785,2.90026,3102.9,3101.9,3.22377]
[1720518666068,2.90026,3102.9,3101.9,3.22375]
[1720518666271,2.90026,3102.9,3102.1,3.22359]
[1720518666503,2.90026,3102.9,3102.1,3.22353]
[1720518666805,2.4296,3102.9,3102.2,3.22344]
[1720518667666,2.4296,3102.9,3101.6,3.0]
[1720518667872,2.4296,3102.9,3102.0,3.22367]
[1720518668088,2.4296,3102.9,3102.1,3.22352]
[1720518668301,0.24296,3102.8,3102.2,3.22351]
[1720518668510,2.4296,3102.9,3102.2,3.22351]
[1720518668696,2.4296,3102.9,3102.3,3.22337]
[1720518670590,2.4296,3102.9,3102.1,3.22352]
[1720518670786,2.4296,3102.9,3102.2,3.0]
[1720518671210,0.55,3102.8,3101.7,3.22399]
[1720518671438,0.79296,3102.8,3101.9,3.22382]
[1720518671643,0.79296,3102.8,3101.9,3.22374]
[1720518671844,2.4296,3102.9,3102.2,3.22344]
[1720518672143,2.4296,3102.9,3102.2,6.44689]
[1720518672496,2.4296,3102.9,3102.2,3.22344]
[1720518672697,2.4296,3102.9,3102.2,6.4469]
[1720518673018,2.4296,3102.9,3102.2,3.22344]
[1720518673216,2.4296,3102.9,3102.3,3.2234]
[1720518674297,2.67256,3102.9,3102.0,3.22366]
[1720518674494,0.55,3102.8,3102.1,3.0]
[1720518674695,0.55,3102.8,3101.8,6.22388]
[1720518674903,0.55,3102.8,3101.8,3.0]
[1720518674904,2.3608,3102.7,3101.8,3.0]
[1720518675106,2.683056,3102.7,3101.9,3.22381]
[1720518675899,2.683056,3102.7,3101.9,6.44754]
[1720518676338,2.683056,3102.7,3102.0,3.22372]
[1720518676539,2.683056,3102.7,3102.1,3.22352]
[1720518676540,2.3608,3102.7,3102.1,3.22352]
[1720518676743,2.3608,3102.7,3102.2,3.22345]
[1720518676958,2.3608,3102.7,3102.1,3.22352]
[1720518677249,2.3608,3102.7,3102.1,6.44708]
[1720518677455,2.3608,3102.7,3102.1,3.22352]
[1720518677601,2.59688,3102.7,3102.0,3.2237]
[1720518677805,2.59688,3102.7,3101.9,3.22377]
[1720518678028,2.59688,3102.7,3102.0,3.0]
[1720518678434,0.32430945,3102.6,3102.0,3.0]
[1720518678612,0.259688,3102.6,3101.8,3.0]
[1720518678950,0.259688,3102.6,3101.9,3.22382]
[1720518679151,2.3608,3102.7,3102.0,3.0]
[1720518680345,2.3326,3103.2,3102.0,3.06447379]
[1720518680646,2.3326,3103.2,3102.3,3.22331]
[1720518680815,2.3326,3103.2,3102.4,3.2233]
[1720518681145,2.3326,3103.2,3102.6,3.22304]
[1720518681449,2.3016,3103.6,3102.2,3.22349]
[1720518681601,2.3016,3103.6,3103.0,6.44523]
[1720518682201,2.3016,3103.6,3103.2,3.22242]
[1720518682423,2.4064,3104.0,3103.0,0.06444605]
[1720518682703,2.4064,3104.0,3103.5,6.44423]
[1720518682902,0.87045558,3104.3,3103.5,3.22208]
[1720518683146,0.87045558,3104.3,3103.8,3.22185]
[1720518683343,2.4064,3104.4,3103.8,3.22185]
[1720518683518,2.4064,3104.4,3103.9,3.22173]
[1720518684213,2.4111,3104.8,3103.7,6.4438]
[1720518684545,0.46881,3104.7,3103.7,3.22187]
[1720518684858,0.46881,3104.7,3103.8,3.22179]
[1720518685345,0.46881,3104.7,3103.9,3.22175]
[1720518686765,0.46881,3104.7,3103.9,3.22169]
[1720518687062,0.46881,3104.7,3103.1,5.3157]
[1720518687228,0.90261245,3104.6,3103.5,3.2221]
[1720518687423,4.7492,3104.5,3103.6,3.0]
[1720518687665,0.06462145,3104.4,3103.4,3.22219]
[1720518687870,0.61462145,3104.4,3103.5,3.0]
[1720518688025,0.61462145,3104.4,3103.1,6.22252]
[1720518688222,0.53638214,3104.3,3103.2,6.4448]
[1720518688423,0.55,3104.2,3103.3,3.0]
[1720518688845,0.55,3104.2,3103.3,6.22234]
[1720518690669,0.61462145,3104.2,3103.3,3.0]
[1720518690867,0.55,3104.2,3103.2,3.0]
[1720518691033,0.55,3104.2,3103.3,3.22236]
[1720518691370,0.55,3104.2,3103.4,3.0]
[1720518691936,0.55,3104.2,3103.3,3.22236]
[1720518693881,0.61462145,3104.2,3103.3,3.22236]
[1720518694270,0.61462145,3104.2,3103.1,6.44499]
[1720518694441,2.4705,3104.1,3103.2,3.0]
[1720518694641,0.3731336,3104.0,3103.1,3.0]
[1720518694837,0.3731336,3104.0,3103.0,3.0]
[1720518695043,0.3731336,3104.0,3103.0,6.22268]
[1720518695270,0.28436336,3103.9,3103.0,3.0]
[1720518696077,0.28436336,3103.9,3103.1,3.22255]
[1720518696239,0.28436336,3103.9,3103.2,3.0]
[1720518696639,0.28436336,3103.9,3103.2,6.22247]
[1720518698873,0.28436336,3103.9,3102.9,3.22272]
[1720518699080,2.4206,3103.7,3102.9,3.22272]
[1720518699246,2.48522145,3103.7,3102.9,3.22272]
[1720518699441,2.48522145,3103.7,3103.0,3.22267]
[1720518699956,2.48522145,3103.7,3102.8,3.2228]
[1720518700263,0.06462145,3103.6,3102.8,3.2228]
[1720518700457,0.24852215,3103.5,3102.8,3.2228]
[1720518700677,0.24852215,3103.5,3102.9,3.22278]
[1720518701688,0.24852215,3103.5,3102.7,6.44584]
[1720518702010,0.06462145,3103.4,3102.8,3.0]
[1720518702163,0.06462145,3103.4,3102.6,3.0]
[1720518703006,0.06462145,3103.4,3102.6,6.22308]
[1720518703298,0.06462145,3103.6,3102.6,3.0]
[1720518703511,2.3084,3103.4,3102.5,3.0]
[1720518703687,2.37302145,3103.4,3102.5,3.0]
[1720518703999,2.3084,3103.4,3102.6,3.22308]
[1720518706308,2.3084,3103.4,3102.7,3.22299]
[1720518706494,2.56409221,3103.4,3102.7,3.22299]
[1720518712199,0.06462145,3103.3,3102.6,3.2231]
[1720518712430,0.06462145,3103.3,3102.5,3.0]
[1720518712567,0.06462145,3103.3,3102.5,3.22315]
[1720518712768,0.06462145,3103.3,3102.6,3.0]
[1720518712992,2.56409221,3103.4,3102.6,3.0]
[1720518713317,0.25640922,3103.3,3102.6,3.0]
[1720518714283,0.32103067,3103.3,3102.3,3.22334]
[1720518714580,0.06462145,3103.2,3102.3,3.22334]
[1720518714900,2.4878,3103.1,3102.1,3.22354]
[1720518715063,0.06462145,3103.0,3102.1,3.22354]
[1720518715267,0.25524215,3102.9,3102.1,3.22354]
[1720518715462,0.25524215,3102.9,3102.0,3.22369]
[1720518715878,0.25524215,3102.9,3102.1,3.22362]
[1720518716467,0.25524215,3102.9,3102.2,3.0]
[1720518717314,2.4878,3103.1,3102.6,3.22305]
[1720518718168,2.4878,3103.1,3102.5,3.22311]
[1720518718413,2.4878,3103.1,3102.6,3.22308]
[1720518720542,2.4878,3103.1,3102.6,6.44611]
[1720518721433,2.4878,3103.1,3102.5,3.22319]
[1720518721943,2.4878,3103.1,3102.6,6.44611]
[1720518722319,2.4878,3103.1,3102.7,3.22296]
[1720518722526,2.4878,3103.1,3102.8,3.22289]
[1720518722709,3.62859158,3103.5,3102.2,6.22349]
[1720518722912,2.2784,3103.5,3103.1,3.22249]
[1720518723146,7.36,3103.7,3103.1,3.22249]
[1720518723291,7.36,3103.7,3103.3,3.22236]
[1720518723695,7.36,3103.7,3103.3,6.44472]
[1720518723898,1.6880479,3104.1,3102.8,3.06444657]
[1720518723899,2.2784,3104.1,3103.6,6.44403]
[1720518724098,2.2784,3104.1,3103.6,3.22197]
[1720518724336,2.2784,3104.1,3103.4,3.22218]
[1720518724501,2.2784,3104.1,3103.4,6.44438]
[1720518724502,3.99145074,3104.1,3103.4,6.44438]
[1720518724703,3.99145074,3104.1,3103.6,3.22205]
[1720518725357,3.99145074,3104.1,3103.5,3.22214]
[1720518725642,3.99145074,3104.1,3103.3,3.22228]
[1720518725808,3.99145074,3104.1,3103.2,3.22241]
[1720518725809,1.35019158,3104.0,3103.4,3.22227]
[1720518726005,1.35019158,3104.0,3103.5,6.2221]
[1720518726268,3.99191072,3104.1,3103.5,6.2221]
[1720518726424,4.73559663,3104.0,3103.1,3.0]
[1720518726630,3.78645156,3104.0,3103.4,3.22226]
[1720518726828,2.4358,3104.0,3103.5,3.22207]
[1720518727030,2.4358,3104.0,3103.6,3.22201]
[1720518727256,3.85005156,3104.3,3103.7,3.22195]
[1720518727463,1.6886006,3104.4,3104.0,3.22156]
[1720518727464,1.35065156,3104.4,3104.0,3.22156]
[1720518727663,1.35065156,3104.6,3104.1,3.22153]
[1720518728131,1.90451678,3104.6,3103.6,3.222]
[1720518728321,3.85005156,3104.5,3103.5,3.22208]
[1720518728527,3.91467301,3104.4,3103.6,3.0]
[1720518728753,3.91467301,3104.4,3103.4,6.22226]
[1720518728754,2.3182,3104.3,3103.4,3.0]
[1720518728963,1.35065156,3104.1,3103.1,3.22257]
[1720518729160,3.66885156,3103.9,3103.0,7.43]
[1720518729376,1.78862031,3103.8,3103.0,7.43]
[1720518729521,1.35065156,3103.6,3102.7,3.22296]
[1720518729725,1.35065156,3103.6,3102.9,3.22277]
[1720518729923,1.35065156,3103.7,3102.9,3.22277]
[1720518730168,0.34125995,3103.6,3102.9,3.22277]
[1720518730376,1.69191151,3103.6,3102.9,3.22277]
[1720518730669,0.34125995,3103.6,3102.9,3.22277]
[1720518730870,1.69191151,3103.6,3102.9,3.22277]
[1720518731030,0.06462145,3103.5,3102.7,3.22292]
[1720518731360,1.35065156,3103.4,3102.7,3.22292]
[1720518732042,2.2915,3103.2,3102.4,6.44649]
[1720518732225,2.2915,3103.2,3102.5,3.0]
[1720518732226,0.06462145,3103.1,3102.5,3.0]
[1720518732425,0.06462145,3103.1,3102.5,6.22311]
[1720518732426,0.43529875,3103.1,3102.5,6.22311]
[1720518733234,1.78595031,3103.1,3102.5,6.22311]
[1720518733443,0.43529875,3103.1,3102.5,6.22311]
[1720518733680,1.41527301,3103.0,3102.1,3.0]
[1720518733984,1.41527301,3103.0,3102.2,3.22349]
[1720518733985,1.82301804,3103.0,3102.2,3.22349]
[1720518734137,1.75839659,3103.0,3102.3,3.0]
[1720518734338,0.38183707,3102.9,3102.3,3.0]
[1720518734557,1.75839659,3103.0,3102.3,6.22341]
[1720518735338,1.75839659,3103.0,3102.3,3.0]
[1720518735542,1.75839659,3103.0,3102.3,6.2234]
[1720518735838,0.40774503,3103.0,3102.5,3.22311]
[1720518736261,0.17594517,3102.9,3101.9,3.0]
[1720518736463,0.06462145,3102.8,3102.1,3.22356]
[1720518736665,0.06462145,3102.8,3101.8,3.22385]
[1720518736666,0.06462145,3102.8,3102.2,3.0]
[1720518736885,1.35170669,3102.8,3102.0,3.22369]
[1720518737175,0.17594517,3102.9,3102.3,3.22339]
[1720518737661,1.52765186,3102.9,3102.0,6.22366]
[1720518737972,1.52765186,3102.9,3102.0,9.44728]
[1720518738176,3.68762814,3102.8,3101.8,3.22387]
[1720518738475,1.41632814,3102.7,3101.8,3.22387]
[1720518738676,1.41632814,3102.7,3101.6,3.22408]
[1720518738677,1.35170669,3102.6,3101.6,3.22406]
[1720518738974,1.35170669,3102.3,3101.6,3.22406]
[1720518739192,1.35170669,3102.3,3101.5,3.22424]
[1720518739193,2.4919,3102.2,3101.5,3.22424]
[1720518739555,3.84360669,3102.2,3101.5,3.22424]